bitfinex/quotes_BTCUSD_20241103
["timestamp","ask_amount","ask_price","bid_price","bid_amount"]
[1730677363016,0.82133616,68888.0,68887.0,0.001]
[1730677363240,0.87233616,68888.0,68887.0,0.001]
[1730677363469,0.31091995,68883.0,68882.0,0.00164]
[1730677363695,0.70373539,68883.0,68882.0,0.00164]
[1730677364073,0.61693742,68883.0,68882.0,0.00164]
[1730677364290,0.69613742,68883.0,68882.0,0.00164]
[1730677364700,0.69813742,68883.0,68882.0,0.00164]
[1730677364899,0.95246063,68883.0,68882.0,0.00164]
[1730677365571,0.84396316,68883.0,68882.0,0.00164]
[1730677365846,0.84496316,68883.0,68882.0,0.00164]
[1730677366055,0.84396316,68883.0,68882.0,0.00164]
[1730677366264,0.93077038,68883.0,68882.0,0.00164]
[1730677366467,0.93177038,68883.0,68882.0,0.00164]
[1730677366673,0.95346063,68883.0,68882.0,0.00164]
[1730677367099,0.84296316,68883.0,68882.0,0.00164]
[1730677367325,0.95146063,68883.0,68882.0,0.00164]
[1730677367558,0.95346063,68883.0,68882.0,0.00164]
[1730677367992,0.95546063,68883.0,68882.0,0.00164]
[1730677368695,0.84696316,68883.0,68882.0,0.00164]
[1730677369132,1.06522711,68883.0,68882.0,0.00164]
[1730677369572,1.06522711,68883.0,68859.0,0.310839]
[1730677369573,0.135699,68860.0,68859.0,0.001638]
[1730677369839,0.53595999,68860.0,68859.0,0.001638]
[1730677370252,0.45675999,68860.0,68859.0,0.001638]
[1730677370458,0.50012882,68860.0,68859.0,0.001638]
[1730677370889,0.50012882,68860.0,68859.0,0.009638]
[1730677371341,0.130749,68835.0,68829.0,0.001638]
[1730677371554,0.130747,68835.0,68834.0,0.21830725]
[1730677371758,0.130755,68831.0,68830.0,0.01387084]
[1730677372389,0.130755,68831.0,68829.0,0.001638]
[1730677372571,0.130754,68832.0,68829.0,0.002638]
[1730677372779,0.1961306,68831.0,68830.0,0.01394642]
[1730677373025,0.0653746,68831.0,68830.0,0.01394642]
[1730677373281,0.0673746,68831.0,68830.0,0.01394642]
[1730677373522,0.0673746,68831.0,68829.0,0.001638]
[1730677373712,0.002,68831.0,68829.0,0.001638]
[1730677373966,0.002,68831.0,68830.0,0.00962836]
[1730677374863,0.003,68831.0,68830.0,0.00962836]
[1730677375075,0.001,68831.0,68830.0,0.00962836]
[1730677375289,0.001,68831.0,68829.0,0.001638]
[1730677375290,0.131755,68831.0,68829.0,0.001638]
[1730677375497,0.0393253,68830.0,68829.0,0.001638]
[1730677377491,0.1700813,68830.0,68829.0,0.001638]
[1730677377703,0.0413253,68830.0,68829.0,0.001638]
[1730677378758,0.0423253,68830.0,68829.0,0.001638]
[1730677380272,0.1730813,68830.0,68829.0,0.001638]
[1730677381192,0.0423253,68830.0,68829.0,0.001638]
[1730677382064,0.003,68830.0,68829.0,0.001638]
[1730677382752,0.003,68830.0,68829.0,0.37759304]
[1730677382963,0.003,68830.0,68829.0,0.52539304]
[1730677384011,0.13073,68844.0,68832.0,0.261504]
[1730677384222,0.34903625,68845.0,68838.0,0.130741]
[1730677384428,0.13073,68844.0,68837.0,0.130743]
[1730677384872,0.130736,68841.0,68832.0,0.14579704]
[1730677385126,0.261462,68844.0,68833.0,0.23075]
[1730677385305,0.261462,68844.0,68833.0,0.1]
[1730677385533,0.392193,68844.0,68836.0,0.130745]
[1730677385978,0.130756,68830.0,68829.0,0.001638]
[1730677387310,0.28155304,68830.0,68829.0,0.001638]
[1730677387491,0.40875304,68830.0,68829.0,0.001638]
[1730677387946,0.41575304,68830.0,68829.0,0.002638]
[1730677389337,0.41675304,68830.0,68829.0,0.002638]
[1730677389588,0.53425614,68830.0,68829.0,0.003638]
[1730677392941,0.01,68825.0,68824.0,0.001638]
[1730677393212,0.85719094,68825.0,68824.0,0.001638]
[1730677393436,0.85719094,68825.0,68813.0,0.001644]
[1730677393437,0.44115095,68814.0,68813.0,0.001644]
[1730677393649,0.41668404,68814.0,68813.0,0.001644]
[1730677394517,0.41468404,68814.0,68813.0,0.001644]
[1730677394992,0.005,68816.0,68813.0,0.002644]
[1730677395263,0.136787,68814.0,68813.0,0.002644]
[1730677395919,0.130787,68814.0,68813.0,0.001644]
[1730677396145,0.137787,68814.0,68813.0,0.002644]
[1730677396360,0.204378,68814.0,68813.0,0.002644]
[1730677396575,0.197378,68814.0,68813.0,0.001644]
[1730677397003,0.201378,68814.0,68813.0,0.001644]
[1730677397231,0.201378,68814.0,68813.0,0.003644]
[1730677397437,0.201378,68814.0,68813.0,0.001644]
[1730677397882,0.201378,68814.0,68813.0,0.004644]
[1730677398105,0.201378,68814.0,68813.0,0.001644]
[1730677398106,0.197378,68814.0,68813.0,0.001644]
[1730677398582,0.197378,68814.0,68813.0,0.003644]
[1730677398583,0.066591,68814.0,68813.0,0.003644]
[1730677398804,0.197378,68814.0,68813.0,0.003644]
[1730677399058,0.197378,68814.0,68813.0,0.001644]
[1730677399473,0.198378,68814.0,68813.0,0.001644]
[1730677399936,0.066591,68814.0,68813.0,0.001644]
[1730677400165,0.197378,68814.0,68813.0,0.001644]
[1730677400417,0.197378,68814.0,68813.0,0.006644]
[1730677400644,0.37264195,68814.0,68813.0,0.006644]
[1730677401322,0.207378,68814.0,68813.0,0.002644]
[1730677401578,0.35317504,68814.0,68813.0,0.001644]
[1730677401804,0.43307504,68814.0,68813.0,0.001644]
[1730677402027,0.43507504,68814.0,68813.0,0.001644]
[1730677402251,0.44107504,68814.0,68813.0,0.002644]
[1730677402483,0.43907504,68814.0,68813.0,0.002644]
[1730677402709,0.44607504,68814.0,68813.0,0.003644]
[1730677402926,0.300278,68814.0,68813.0,0.003644]
[1730677403137,0.148787,68814.0,68813.0,0.003644]
[1730677403361,0.142787,68814.0,68813.0,0.002644]
[1730677403828,0.149787,68814.0,68813.0,0.003644]
[1730677404032,0.2607601,68814.0,68813.0,0.003644]
[1730677410578,0.2657601,68814.0,68813.0,0.003644]
[1730677411411,0.2607601,68814.0,68813.0,0.003644]
[1730677413821,0.149787,68814.0,68813.0,0.003644]
[1730677415547,0.144787,68814.0,68813.0,0.003644]
[1730677415806,0.014,68814.0,68813.0,0.003644]
[1730677416241,0.014,68814.0,68813.0,0.01340719]
[1730677420604,0.014,68814.0,68813.0,0.14419619]
[1730677422756,0.007,68814.0,68813.0,0.14319619]
[1730677423173,0.008,68814.0,68813.0,0.14319619]
[1730677423383,0.001,68814.0,68813.0,0.14219619]
[1730677423801,0.002,68814.0,68813.0,0.14219619]
[1730677424225,0.002,68814.0,68813.0,0.19109619]
[1730677425481,0.002,68814.0,68813.0,0.27059619]
[1730677426314,0.002,68814.0,68813.0,0.2778418]
[1730677427457,0.002,68814.0,68813.0,0.27059619]
[1730677429659,0.002,68814.0,68813.0,0.51639323]
[1730677430325,0.001,68814.0,68813.0,0.51639323]
[1730677430547,0.000819,68818.0,68817.0,0.130781]
[1730677430785,0.002,68814.0,68813.0,0.23980719]
[1730677431058,0.002,68814.0,68813.0,0.001644]
[1730677431285,0.130787,68814.0,68813.0,0.003644]
[1730677431518,0.21597826,68814.0,68813.0,0.003644]
[1730677432618,0.21597826,68814.0,68813.0,0.001644]
[1730677432836,0.21597826,68814.0,68813.0,0.005644]
[1730677433277,0.21597826,68814.0,68813.0,0.001644]
[1730677433494,0.21597826,68814.0,68813.0,0.004644]
[1730677434400,0.21597826,68814.0,68813.0,0.01548588]
[1730677434629,0.130787,68814.0,68813.0,0.01548588]
[1730677436206,0.130787,68814.0,68813.0,0.004644]
[1730677436876,0.130787,68814.0,68813.0,0.01988966]
[1730677437084,0.130787,68814.0,68813.0,0.00904778]
[1730677440137,0.130787,68814.0,68813.0,0.004644]
[1730677440342,0.19895166,68814.0,68813.0,0.004644]
[1730677440766,0.130787,68814.0,68813.0,0.004644]
[1730677442956,0.130787,68814.0,68813.0,0.003644]
[1730677443174,0.130787,68814.0,68813.0,0.001644]
[1730677443609,0.135787,68814.0,68813.0,0.002644]
[1730677443853,0.218587,68814.0,68813.0,0.002644]
[1730677444075,0.36231063,68814.0,68813.0,0.002644]
[1730677444782,0.04334861,68815.0,68813.0,0.002644]
[1730677444990,0.32658691,68817.0,68813.0,0.002644]
[1730677444991,0.130782,68817.0,68813.0,0.002644]
[1730677445230,0.000819,68818.0,68813.0,0.133432]
[1730677445459,0.131599,68818.0,68814.0,0.010847]
[1730677445674,0.131599,68818.0,68814.0,0.141634]
[1730677445869,0.000819,68818.0,68814.0,0.141634]
[1730677446142,0.130783,68816.0,68814.0,0.010847]
[1730677446438,0.130785,68815.0,68814.0,0.010847]
[1730677446892,0.261565,68817.0,68814.0,0.01524655]
[1730677447121,0.392348,68817.0,68814.0,0.01524655]
[1730677447351,0.003819,68818.0,68814.0,0.01524655]
[1730677447576,0.003819,68818.0,68814.0,0.27682055]
[1730677447787,0.003819,68818.0,68816.0,0.130783]
[1730677447998,0.003819,68818.0,68815.0,0.01084833]
[1730677448231,0.000819,68818.0,68814.0,0.26597355]
[1730677448470,0.002,68816.0,68815.0,0.130785]
[1730677448900,0.000819,68818.0,68815.0,0.130785]
[1730677449124,0.001,68816.0,68814.0,0.00439955]
[1730677449339,0.23023918,68818.0,68815.0,0.002]
[1730677449793,0.23023918,68818.0,68815.0,0.005]
[1730677450000,0.23023918,68818.0,68814.0,0.130787]
[1730677450241,0.23023918,68818.0,68815.0,0.004]
[1730677450455,0.002,68816.0,68815.0,0.00839533]
[1730677450670,0.002,68816.0,68815.0,0.13918033]
[1730677450878,0.002,68816.0,68815.0,0.14218033]
[1730677451306,0.002,68816.0,68815.0,0.13818033]
[1730677451773,0.002,68816.0,68815.0,0.14018033]
[1730677452229,0.000819,68818.0,68817.0,0.130781]
[1730677452654,0.000819,68818.0,68817.0,0.13516788]
[1730677453540,0.000819,68818.0,68817.0,0.13816788]
[1730677454610,0.000819,68818.0,68817.0,0.14016788]
[1730677455720,0.000819,68818.0,68817.0,0.36686788]
[1730677456167,0.000819,68818.0,68817.0,0.68292887]
[1730677456837,0.000819,68818.0,68817.0,0.68182903]
[1730677457280,0.001819,68818.0,68817.0,0.69182903]
[1730677457750,0.001819,68818.0,68817.0,0.68982903]
[1730677457981,0.002819,68818.0,68817.0,0.69582903]
[1730677458412,0.001819,68818.0,68817.0,0.68582903]
[1730677458621,0.002819,68818.0,68817.0,0.69282903]
[1730677459063,0.002819,68818.0,68817.0,0.69482903]
[1730677459289,0.002819,68818.0,68817.0,0.70482903]
[1730677459716,0.002819,68818.0,68817.0,0.70282903]
[1730677461022,0.002819,68818.0,68817.0,0.69282903]
[1730677461234,0.002819,68818.0,68817.0,0.15006804]
[1730677462141,0.001819,68818.0,68817.0,0.14406804]
[1730677462346,0.001819,68818.0,68817.0,0.15298415]
[1730677462557,0.001819,68818.0,68817.0,0.15498415]
[1730677462768,0.002819,68818.0,68817.0,0.16798415]
[1730677462993,0.001819,68818.0,68817.0,0.15898415]
[1730677463199,0.001819,68818.0,68817.0,0.14598415]
[1730677463422,0.005819,68818.0,68817.0,0.14598415]
[1730677464559,0.009819,68818.0,68817.0,0.14598415]
[1730677465006,0.009819,68818.0,68817.0,0.14762215]
[1730677465228,0.000819,68818.0,68817.0,0.14762215]
[1730677468099,0.004819,68818.0,68817.0,0.14762215]
[1730677468531,0.008819,68818.0,68817.0,0.14762215]
[1730677470706,0.008819,68818.0,68817.0,0.32982215]
[1730677470920,0.008819,68818.0,68817.0,0.52261919]
[1730677471135,0.004819,68818.0,68817.0,0.52261919]
[1730677471343,0.004819,68818.0,68817.0,0.52761919]
[1730677471552,0.001819,68818.0,68817.0,0.52761919]
[1730677472016,0.000819,68818.0,68817.0,0.52261919]
[1730677472254,0.000819,68818.0,68817.0,0.52761919]
[1730677472255,0.001819,68818.0,68817.0,0.52761919]
[1730677472702,0.001819,68818.0,68817.0,0.25262215]
[1730677472883,0.001819,68818.0,68817.0,0.25462215]
[1730677474226,0.000819,68818.0,68817.0,0.24962215]
[1730677474450,0.000819,68818.0,68817.0,0.25062215]
[1730677474888,0.000819,68818.0,68817.0,0.24862215]
[1730677475096,0.000819,68818.0,68817.0,0.24762215]
[1730677475318,0.002819,68818.0,68817.0,0.24762215]
[1730677475546,0.004819,68818.0,68817.0,0.24762215]
[1730677481280,0.004819,68818.0,68817.0,0.64388314]
[1730677481898,0.002819,68818.0,68817.0,0.64388314]
[1730677482120,0.002819,68818.0,68817.0,0.64488314]
[1730677482350,0.000819,68818.0,68817.0,0.64488314]
[1730677482554,0.000819,68818.0,68817.0,0.65088314]
[1730677482774,0.001819,68818.0,68817.0,0.65088314]
[1730677483426,0.000819,68818.0,68817.0,0.64388314]
[1730677483657,0.000819,68818.0,68817.0,0.47361919]
[1730677483895,0.001819,68818.0,68817.0,0.48361919]
[1730677484357,0.000819,68818.0,68817.0,0.47861919]
[1730677484581,0.000819,68818.0,68817.0,0.48261919]
[1730677485286,0.000819,68818.0,68817.0,0.47361919]
[1730677485513,0.001819,68818.0,68817.0,0.47961919]
[1730677485729,0.001819,68818.0,68817.0,0.47361919]
[1730677486188,0.001819,68818.0,68817.0,0.47661919]
[1730677486633,0.001819,68818.0,68817.0,0.47861919]
[1730677487713,0.001819,68818.0,68817.0,0.39841919]
[1730677487923,0.001819,68818.0,68817.0,0.39641919]
[1730677488350,0.000819,68818.0,68817.0,0.39541919]
[1730677488579,0.000819,68818.0,68817.0,0.39841919]
[1730677489666,0.000819,68818.0,68817.0,0.39641919]
[1730677495865,0.000819,68818.0,68817.0,0.47661919]
[1730677496594,0.000819,68818.0,68817.0,0.47361919]
[1730677496819,0.000819,68818.0,68817.0,0.47561919]
[1730677497239,0.000819,68818.0,68817.0,0.47361919]
[1730677497663,0.000819,68818.0,68817.0,0.47761919]
[1730677498354,0.000819,68818.0,68817.0,0.48061919]
[1730677498558,0.000819,68818.0,68817.0,0.47761919]
[1730677498973,0.000819,68818.0,68817.0,0.48261919]
[1730677505781,0.000819,68818.0,68817.0,0.40241919]
[1730677506205,0.000819,68818.0,68817.0,0.25662215]
[1730677506608,0.000819,68818.0,68817.0,0.24762215]
[1730677507019,0.000819,68818.0,68817.0,0.25262215]
[1730677508305,0.000819,68818.0,68817.0,0.12184115]
[1730677508516,0.123319,68818.0,68817.0,0.02184115]
[1730677508920,0.123319,68818.0,68817.0,0.09454115]
[1730677509126,0.1748827,68818.0,68817.0,0.09454115]
[1730677509265,0.1748827,68818.0,68817.0,0.09254115]
[1730677509675,0.1778827,68818.0,68817.0,0.08954115]
[1730677509875,0.1778827,68818.0,68817.0,0.22032215]
[1730677510080,0.1808827,68818.0,68817.0,0.22032215]
[1730677510294,0.1808827,68818.0,68817.0,0.08954115]
[1730677510516,0.129319,68818.0,68817.0,0.08954115]
[1730677512642,0.083419,68818.0,68817.0,0.22032215]
[1730677512841,0.006819,68818.0,68817.0,0.22032215]
[1730677515694,0.006819,68818.0,68817.0,0.32032215]
[1730677515925,0.006819,68818.0,68817.0,0.71888314]
[1730677516148,0.006819,68818.0,68817.0,0.77188314]
[1730677516381,0.006819,68818.0,68817.0,0.77688314]
[1730677516624,0.006819,68818.0,68817.0,0.82045845]
[1730677517130,0.006819,68818.0,68817.0,0.92595568]
[1730677517354,0.006819,68818.0,68817.0,0.95502568]
[1730677517581,0.003819,68818.0,68817.0,0.95502568]
[1730677517835,0.000819,68818.0,68817.0,1.12528963]
[1730677518080,0.001819,68818.0,68817.0,1.13228963]
[1730677518522,0.21830725,68831.0,68830.0,0.53151995]
[1730677518735,0.21830725,68831.0,68830.0,0.67731699]
[1730677518939,0.21830725,68831.0,68830.0,0.69266129]
[1730677519168,0.21830725,68838.0,68837.0,0.130743]
[1730677519430,0.21830725,68845.0,68844.0,0.13073]
[1730677519859,0.21830725,68845.0,68839.0,0.522958]
[1730677519860,0.04343765,68852.0,68851.0,0.130717]
[1730677520070,0.21830725,68853.0,68852.0,0.130715]
[1730677520497,0.0459,68856.0,68852.0,0.130715]
[1730677520498,0.08933765,68856.0,68852.0,0.130714]
[1730677520714,0.0459,68856.0,68852.0,0.130714]
[1730677521151,0.0459,68856.0,68849.0,0.261438]
[1730677521365,0.0459,68856.0,68852.0,0.130713]
[1730677521602,0.0459,68856.0,68852.0,0.130715]
[1730677521820,0.0479,68856.0,68852.0,0.130715]
[1730677522258,0.130711,68855.0,68850.0,0.130718]
[1730677522491,0.0479,68856.0,68853.0,0.00905217]
[1730677522708,0.0479,68856.0,68849.0,0.001]
[1730677522927,0.178608,68856.0,68850.0,0.130717]
[1730677523143,0.130717,68851.0,68850.0,0.01520229]
[1730677524251,0.39214,68853.0,68850.0,0.01520229]
[1730677524465,0.130715,68852.0,68850.0,0.01520229]
[1730677525101,0.004,68851.0,68850.0,0.01520229]
[1730677525311,0.008,68851.0,68850.0,0.01520229]
[1730677525538,0.004,68851.0,68850.0,0.01520229]
[1730677526016,0.137715,68852.0,68850.0,0.01520229]
[1730677526221,0.137715,68852.0,68845.0,0.130728]
[1730677526222,0.133715,68852.0,68845.0,0.130728]
[1730677526437,0.133715,68852.0,68851.0,0.01519728]
[1730677526641,0.133715,68852.0,68845.0,0.130728]
[1730677526857,0.133715,68852.0,68846.0,0.00616462]
[1730677527060,0.133715,68852.0,68846.0,0.01522231]
[1730677527519,0.0776,68854.0,68846.0,0.01522231]
[1730677527520,0.0776,68854.0,68848.0,0.130721]
[1730677527723,0.0776,68854.0,68850.0,0.005]
[1730677527937,0.130713,68853.0,68850.0,0.004]
[1730677528364,0.130713,68853.0,68846.0,0.130725]
[1730677528589,0.208311,68854.0,68846.0,0.130725]
[1730677528784,0.208311,68854.0,68847.0,0.01521731]
[1730677529221,0.212311,68854.0,68847.0,0.01521731]
[1730677529445,0.212311,68854.0,68850.0,0.002]
[1730677529651,0.130713,68853.0,68850.0,0.002]
[1730677530546,0.130713,68853.0,68851.0,0.00614353]
[1730677530752,0.130715,68852.0,68851.0,0.00614353]
[1730677530954,0.130715,68852.0,68847.0,0.0090569]
[1730677530955,0.261426,68853.0,68847.0,0.0090569]
[1730677531188,0.40970834,68853.0,68845.0,0.130727]
[1730677531399,0.130715,68852.0,68844.0,0.130728]
[1730677531604,0.27899434,68853.0,68844.0,0.130728]
[1730677531605,0.27899434,68853.0,68850.0,0.005]
[1730677531733,0.130717,68851.0,68850.0,0.002]
[1730677531941,0.43578095,68851.0,68850.0,0.002]
[1730677532124,0.43578095,68851.0,68830.0,0.261513]
[1730677532125,0.005,68848.0,68830.0,0.261513]
[1730677532337,0.130734,68842.0,68841.0,0.21830725]
[1730677532534,0.130737,68841.0,68834.0,0.21830725]
[1730677533054,0.130737,68841.0,68833.0,0.130751]
[1730677533271,0.130737,68841.0,68834.0,0.130748]
[1730677534166,0.130737,68841.0,68835.0,0.00621105]
[1730677534406,0.131737,68841.0,68835.0,0.00621105]
[1730677534610,0.130737,68841.0,68835.0,0.00621105]
[1730677535053,0.133737,68841.0,68835.0,0.00621105]
[1730677535226,0.005,68841.0,68835.0,0.00621105]
[1730677535457,0.005,68841.0,68831.0,0.26151]
[1730677535663,0.002,68841.0,68833.0,0.392253]
[1730677535868,0.132736,68841.0,68834.0,0.13696327]
[1730677536083,0.135736,68841.0,68834.0,0.13696327]
[1730677536558,0.0472,68839.0,68834.0,0.00621527]
[1730677536765,0.213347,68835.0,68834.0,0.00621527]
[1730677536969,0.213347,68835.0,68821.0,0.130773]
[1730677536970,0.130759,68829.0,68821.0,0.130773]
[1730677537178,0.130759,68829.0,68827.0,0.21830725]
[1730677537385,0.130762,68828.0,68822.0,0.00964597]
[1730677537597,0.130762,68828.0,68821.0,0.130773]
[1730677538663,0.1699904,68827.0,68820.0,0.130775]
[1730677538900,0.1699904,68827.0,68818.0,0.230778]
[1730677539108,0.1699904,68827.0,68819.0,0.130776]
[1730677539313,0.1699904,68827.0,68822.0,0.006]
[1730677539522,0.0392274,68827.0,68822.0,0.006]
[1730677539754,0.131761,68828.0,68822.0,0.006]
[1730677540192,0.001,68828.0,68822.0,0.006]
[1730677540394,0.130759,68829.0,68821.0,0.130773]
[1730677540609,0.21830725,68830.0,68821.0,0.130773]
[1730677540826,0.130759,68829.0,68821.0,0.130773]
[1730677541042,0.21846703,68829.0,68821.0,0.130773]
[1730677541485,0.002,68828.0,68821.0,0.130773]
[1730677541931,0.130761,68828.0,68821.0,0.130773]
[1730677542589,0.130761,68828.0,68820.0,0.130775]
[1730677542841,0.22046703,68829.0,68821.0,0.130774]
[1730677543064,0.132759,68829.0,68822.0,0.130771]
[1730677543495,0.34906425,68830.0,68822.0,0.13077]
[1730677543712,0.21830725,68830.0,68820.0,0.261551]
[1730677543930,0.47979425,68837.0,68818.0,0.1]
[1730677543931,0.001,68828.0,68827.0,0.130762]
[1730677544151,0.001,68828.0,68824.0,0.261535]
[1730677544368,0.130751,68834.0,68826.0,0.130763]
[1730677544577,0.001,68829.0,68826.0,0.130763]
[1730677544785,0.004,68830.0,68826.0,0.130763]
[1730677545202,0.001,68830.0,68826.0,0.130763]
[1730677545639,0.001,68830.0,68822.0,0.0498]
[1730677545852,0.001,68830.0,68828.0,0.130759]
[1730677546062,0.004,68834.0,68830.0,0.130755]
[1730677546264,0.004,68834.0,68823.0,0.26154]
[1730677546467,0.004,68834.0,68829.0,0.130758]
[1730677546696,0.34905225,68837.0,68829.0,0.130758]
[1730677546904,0.21830725,68837.0,68830.0,0.00967954]
[1730677547118,0.130745,68836.0,68830.0,0.00967954]
[1730677548203,0.130745,68836.0,68830.0,0.01067954]
[1730677548409,0.130749,68834.0,68830.0,0.01067954]
[1730677548645,0.130748,68835.0,68830.0,0.00967954]
[1730677548858,0.266491,68836.0,68830.0,0.00967954]
[1730677549143,0.130747,68835.0,68831.0,0.00967777]
[1730677549565,0.130747,68835.0,68828.0,0.130759]
[1730677549765,0.130747,68835.0,68832.0,0.00967698]
[1730677549984,0.130747,68835.0,68830.0,0.001]
[1730677550225,0.130747,68835.0,68833.0,0.00967619]
[1730677550412,0.130747,68835.0,68828.0,0.130759]
[1730677550851,0.133747,68835.0,68828.0,0.130759]
[1730677551098,0.133747,68835.0,68829.0,0.00967935]
[1730677551286,0.21830725,68837.0,68826.0,0.261525]
[1730677551533,0.130745,68836.0,68829.0,0.130758]
[1730677551983,0.004,68835.0,68833.0,0.001]
[1730677552406,0.130746,68836.0,68834.0,0.009674]
[1730677552842,0.130747,68835.0,68834.0,0.009674]
[1730677553245,0.130747,68835.0,68829.0,0.130758]
[1730677553686,0.130747,68835.0,68830.0,0.00967619]
[1730677555467,0.130747,68835.0,68833.0,0.002]
[1730677555677,0.130747,68835.0,68829.0,0.130758]
[1730677555884,0.130747,68835.0,68834.0,0.00962482]
[1730677556103,0.136747,68835.0,68830.0,0.001]
[1730677556234,0.141747,68835.0,68834.0,0.00962482]
[1730677556448,0.141747,68835.0,68830.0,0.001]
[1730677556673,0.135747,68835.0,68834.0,0.0096245]
[1730677556882,0.135747,68835.0,68829.0,0.130758]
[1730677557102,0.130747,68835.0,68834.0,0.00962437]
[1730677557491,0.130747,68835.0,68829.0,0.132396]
[1730677557701,0.130747,68835.0,68834.0,0.00962437]
[1730677557927,0.130747,68835.0,68829.0,0.132396]
[1730677558353,0.130747,68835.0,68830.0,0.00962753]
[1730677558576,0.134747,68835.0,68830.0,0.00962753]
[1730677559069,0.130747,68835.0,68831.0,0.00637083]
[1730677559295,0.138747,68835.0,68834.0,0.001]
[1730677559944,0.138747,68835.0,68829.0,0.132396]
[1730677559945,0.142747,68835.0,68829.0,0.132396]
[1730677560160,0.139747,68835.0,68829.0,0.132396]
[1730677560375,0.139747,68835.0,68830.0,0.00962737]
[1730677560579,0.004,68835.0,68830.0,0.00962737]
[1730677560781,0.004,68835.0,68830.0,0.14038337]
[1730677560988,0.004,68835.0,68834.0,0.001]
[1730677561407,0.004,68835.0,68834.0,0.01062399]
[1730677561611,0.60051364,68844.0,68834.0,0.001]
[1730677561612,0.0773,68844.0,68834.0,0.001]
[1730677561791,0.22037039,68846.0,68839.0,0.130739]
[1730677561992,0.130729,68845.0,68839.0,0.130739]
[1730677562208,0.04332458,68845.0,68840.0,0.00961926]
[1730677562415,0.04332458,68845.0,68830.0,0.00559812]
[1730677562416,0.130749,68834.0,68830.0,0.00559812]
[1730677562619,0.135747,68835.0,68834.0,0.002]
[1730677562825,0.005,68835.0,68830.0,0.00559984]
[1730677562970,0.130752,68833.0,68829.0,0.001638]
[1730677563171,0.130752,68833.0,68830.0,0.0056005]
[1730677563378,0.130752,68833.0,68829.0,0.001638]
[1730677563577,0.130752,68833.0,68830.0,0.00560167]
[1730677563781,0.130752,68833.0,68829.0,0.001638]
[1730677563987,0.392242,68835.0,68830.0,0.00560162]
[1730677564226,0.130748,68835.0,68829.0,0.132396]
[1730677564429,0.130748,68835.0,68830.0,0.00560283]
[1730677564683,0.130748,68835.0,68829.0,0.132396]
[1730677564899,0.130748,68835.0,68830.0,0.00560186]
[1730677565015,0.130748,68835.0,68834.0,0.002]
[1730677565219,0.130748,68835.0,68830.0,0.00560166]
[1730677565449,0.003,68833.0,68831.0,0.00560166]
[1730677565661,0.003,68833.0,68831.0,0.130754]
[1730677565933,0.130745,68836.0,68831.0,0.130754]
[1730677566128,0.130745,68836.0,68834.0,0.001]
[1730677566338,0.130745,68836.0,68834.0,0.003]
[1730677566470,0.005,68839.0,68834.0,0.001]
[1730677566684,0.005,68839.0,68831.0,0.261509]
[1730677567063,0.130743,68838.0,68832.0,0.13635624]
[1730677567280,0.130743,68837.0,68833.0,0.00560424]
[1730677567495,0.130743,68837.0,68832.0,0.00962142]
[1730677567711,0.130743,68837.0,68833.0,0.01522598]
[1730677567918,0.130743,68837.0,68833.0,0.00962063]
[1730677568142,0.130743,68837.0,68831.0,0.133754]
[1730677568272,0.130743,68837.0,68834.0,0.00961984]
[1730677568496,0.130743,68837.0,68832.0,0.130753]
[1730677568698,0.130743,68837.0,68833.0,0.01522635]
[1730677568905,0.130743,68837.0,68833.0,0.00962063]
[1730677569560,0.135741,68839.0,68833.0,0.00962063]
[1730677569736,0.130743,68838.0,68833.0,0.00962063]
[1730677570527,0.261478,68840.0,68834.0,0.00560703]
[1730677570731,0.130742,68838.0,68833.0,0.01062063]
[1730677571410,0.130742,68838.0,68834.0,0.00560475]
[1730677571622,0.30492499,68842.0,68833.0,0.01262063]
[1730677571623,0.04845499,68842.0,68833.0,0.01262063]
[1730677571858,0.17418899,68842.0,68837.0,0.130743]
[1730677572070,0.04345499,68842.0,68838.0,0.130741]
[1730677572329,0.04345499,68842.0,68838.0,0.14035768]
[1730677572734,0.04345499,68842.0,68838.0,0.00961668]
[1730677572955,0.04945499,68842.0,68838.0,0.00961668]
[1730677573171,0.17718899,68842.0,68836.0,0.130745]
[1730677573399,0.04345499,68842.0,68839.0,0.00961589]
[1730677573608,0.04345499,68841.0,68837.0,0.130742]
[1730677573921,0.04345499,68841.0,68838.0,0.00961668]
[1730677574559,0.04345499,68840.0,68838.0,0.00961668]
[1730677574979,0.04345499,68840.0,68838.0,0.01261668]
[1730677575448,0.04345499,68840.0,68838.0,0.00961668]
[1730677575648,0.04345499,68839.0,68838.0,0.00961668]
[1730677575880,0.04345499,68839.0,68838.0,0.004]
[1730677576032,0.04345499,68839.0,68838.0,0.01661668]
[1730677576419,0.04345499,68839.0,68838.0,0.01361668]
[1730677576621,0.06518249,68840.0,68838.0,0.01361668]
[1730677576922,0.06518249,68840.0,68838.0,0.01761668]
[1730677577487,0.06531257,68840.0,68838.0,0.01361668]
[1730677577690,0.06531257,68839.0,68838.0,0.01361668]
[1730677577923,0.06531257,68839.0,68838.0,0.01861668]
[1730677578129,0.06531257,68839.0,68838.0,0.00961668]
[1730677578308,0.06531257,68839.0,68837.0,0.130743]
[1730677578517,0.06531257,68839.0,68838.0,0.01661418]
[1730677578723,0.08708342,68840.0,68838.0,0.01261418]
[1730677578923,0.08708342,68840.0,68838.0,0.00961418]
[1730677579132,0.08708342,68840.0,68838.0,0.005]
[1730677579336,0.08708342,68840.0,68839.0,0.00961339]
[1730677579337,0.24788534,68840.0,68839.0,0.00961339]
[1730677579794,0.24788534,68840.0,68838.0,0.005]
[1730677580211,0.24788534,68840.0,68839.0,0.00961339]
[1730677580421,0.24788534,68840.0,68839.0,0.14035239]
[1730677580422,0.08708342,68840.0,68839.0,0.14035239]
[1730677580678,0.21182514,68848.0,68840.0,0.261475]
[1730677580679,0.04356268,68843.0,68840.0,0.261475]
[1730677580884,0.04356466,68846.0,68845.0,0.130728]